bitfinex/quotes_SOLUSD_20250517
["timestamp","ask_amount","ask_price","bid_price","bid_amount"]
[1747523536473,42.27473653,165.7,165.62,12.47699741]
[1747523536884,42.27473653,165.7,165.62,56.47699741]
[1747523537175,10.23955239,165.69,165.62,56.47699741]
[1747523538174,10.23955239,165.69,165.62,76.05699741]
[1747523538376,6.03573153,165.68,165.62,76.05699741]
[1747523539757,6.03536725,165.69,165.62,76.05699741]
[1747523539961,6.03536725,165.69,165.62,32.05699741]
[1747523541405,6.03536725,165.69,165.62,12.47699741]
[1747523541590,6.03536725,165.69,165.63,25.61743201]
[1747523543089,6.03536725,165.69,165.63,19.58]
[1747523543292,31.36333777,165.69,165.62,6.4392]
[1747523543483,10.23955239,165.68,165.63,19.58]
[1747523543672,6.03609585,165.67,165.63,19.58]
[1747523543871,10.23955239,165.68,165.63,19.58]
[1747523543872,6.03586182,165.68,165.63,19.58]
[1747523547779,16.27541421,165.68,165.61,19.56]
[1747523548082,16.27541421,165.68,165.59,4.34250318]
[1747523548083,10.23955239,165.63,165.59,4.34250318]
[1747523548300,10.23955239,165.62,165.59,4.34250318]
[1747523549560,16.27761933,165.62,165.59,4.34250318]
[1747523549760,16.27716401,165.63,165.59,4.34250318]
[1747523550672,16.27716401,165.63,165.57,6.03968579]
[1747523552064,42.27683837,165.64,165.57,6.03968579]
[1747523552396,6.03609585,165.67,165.57,6.03968579]
[1747523552563,10.23955239,165.66,165.57,6.03968579]
[1747523553495,32.03609585,165.67,165.57,6.03968579]
[1747523553496,6.03718908,165.64,165.57,6.03968579]
[1747523553793,10.23955239,165.63,165.57,6.03968579]
[1747523554508,32.03718908,165.64,165.57,25.61968579]
[1747523554787,26.0,165.64,165.57,25.61968579]
[1747523555168,36.23955239,165.64,165.57,25.61968579]
[1747523555593,42.27708579,165.64,165.57,25.61968579]
[1747523556587,36.23955239,165.64,165.57,25.61968579]
[1747523556773,26.0,165.64,165.57,25.61968579]
[1747523557582,32.03728804,165.64,165.57,25.61968579]
[1747523558103,16.27642245,165.65,165.57,25.61968579]
[1747523558916,42.2760617,165.66,165.57,40.71903953]
[1747523559210,10.23955239,165.64,165.57,25.61968579]
[1747523560391,16.27704532,165.64,165.57,25.61968579]
[1747523564304,10.23955239,165.63,165.57,19.58]
[1747523564505,10.23955239,165.63,165.56,25.6201063]
[1747523565127,16.27704532,165.64,165.56,25.6201063]
[1747523567043,16.27637702,165.65,165.56,40.72037206]
[1747523568713,36.23955239,165.64,165.56,40.72037206]
[1747523569112,10.23955239,165.62,165.56,25.6201063]
[1747523570539,10.23955239,165.62,165.54,66.99215204]
[1747523570540,10.23955239,165.61,165.54,4.34250318]
[1747523570742,10.23955239,165.6,165.54,4.34250318]
[1747523571042,10.23955239,165.6,165.54,23.90250318]
[1747523571675,16.27864083,165.59,165.54,29.94323377]
[1747523572175,6.03908844,165.59,165.54,29.94323377]
[1747523572774,16.27826195,165.6,165.54,29.94323377]
[1747523573170,6.03870956,165.6,165.54,4.34250318]
[1747523573374,10.23955239,165.57,165.54,4.34250318]
[1747523573862,16.27934844,165.57,165.54,4.34250318]
[1747523574259,10.23955239,165.56,165.54,4.34250318]
[1747523574470,16.27934844,165.57,165.54,4.34250318]
[1747523574669,10.23955239,165.58,165.54,10.38325768]
[1747523574876,10.23955239,165.58,165.54,4.34250318]
[1747523575179,10.23955239,165.58,165.53,6.04084437]
[1747523575872,10.23955239,165.59,165.51,21.1467585]
[1747523576251,10.23955239,165.6,165.51,21.1467585]
[1747523578374,10.23955239,165.61,165.52,18.64964886]
[1747523578570,36.23955239,165.62,165.52,18.64964886]
[1747523578962,36.23955239,165.62,165.52,62.64964886]
[1747523580082,26.0,165.62,165.52,62.64964886]
[1747523580384,26.0,165.62,165.54,7.9142]
[1747523580870,10.23955239,165.63,165.54,7.9142]
[1747523581278,16.27710985,165.63,165.55,6.04047115]
[1747523581459,16.27710985,165.63,165.56,19.56]
[1747523582563,16.27710985,165.63,165.57,6.03974149]
[1747523584875,10.23955239,165.62,165.57,6.03974149]
[1747523585080,10.23955239,165.62,165.53,44.0]
[1747523585081,10.23955239,165.6,165.53,44.0]
[1747523585271,10.23955239,165.59,165.53,44.0]
[1747523585455,10.23955239,165.59,165.53,6.04120099]
[1747523585854,10.23955239,165.58,165.53,6.04120099]
[1747523586166,10.23955239,165.6,165.53,6.04120099]
[1747523589588,10.23955239,165.6,165.53,25.60120099]
[1747523590502,10.23955239,165.59,165.53,19.56]
[1747523590695,10.23955239,165.58,165.53,19.56]
[1747523591401,6.03974149,165.57,165.53,19.56]
[1747523591774,10.23955239,165.56,165.51,6.04180305]
[1747523591975,6.03974149,165.57,165.49,19.44839267]
[1747523591976,36.23955239,165.52,165.49,4.34250318]
[1747523592199,54.88920125,165.5,165.49,4.34250318]
[1747523592479,28.88920125,165.5,165.49,4.34250318]
[1747523593798,34.93149732,165.5,165.49,4.34250318]
[1747523594414,26.0,165.47,165.42,6.04512892]
[1747523594610,10.23955239,165.48,165.42,6.04512892]
[1747523595433,10.23955239,165.43,165.38,26.0]
[1747523595591,10.23955239,165.44,165.35,7.9226]
[1747523595921,10.23955239,165.39,165.35,7.9226]
[1747523596127,26.0,165.42,165.35,7.9226]
[1747523596313,10.23955239,165.4,165.35,13.97020962]
[1747523596496,10.23955239,165.41,165.35,13.97020962]
[1747523596697,10.23955239,165.4,165.35,13.97020962]
[1747523596906,10.23955239,165.39,165.35,7.9226]
[1747523597501,10.23955239,165.38,165.35,7.9226]
[1747523598597,10.23955239,165.39,165.35,7.9226]
[1747523598938,10.23955239,165.41,165.35,13.97022306]
[1747523599230,36.23955239,165.42,165.35,13.97022306]
[1747523599442,10.23955239,165.44,165.35,34.57022306]
[1747523599602,10.23955239,165.44,165.35,49.68966666]
[1747523600302,32.04444396,165.45,165.35,50.89882536]
[1747523600303,36.23955239,165.45,165.35,50.89882536]
[1747523600626,26.0,165.45,165.35,49.37262536]
[1747523600800,10.23955239,165.47,165.36,18.64964886]
[1747523601130,36.23955239,165.47,165.36,18.64964886]
[1747523601560,42.28298462,165.47,165.37,6.04704601]
[1747523601731,10.23955239,165.46,165.37,21.16466105]
[1747523605223,32.04343223,165.47,165.37,21.16466105]
[1747523605658,10.23955239,165.46,165.37,21.16466105]
[1747523605837,10.23955239,165.45,165.37,21.16466105]
[1747523607046,16.28371828,165.45,165.37,21.16466105]
[1747523607250,10.23955239,165.44,165.37,21.16466105]
[1747523607676,10.23955239,165.44,165.37,6.04704601]
[1747523608870,10.23955239,165.44,165.36,6.0474117]
[1747523609073,26.0,165.47,165.36,6.0474117]
[1747523609074,6.04387258,165.46,165.36,21.16594096]
[1747523609267,10.23955239,165.45,165.36,21.16594096]
[1747523610768,16.28372025,165.45,165.36,21.16594096]
[1747523611378,10.23955239,165.44,165.36,21.16594096]
[1747523612582,6.04388512,165.46,165.36,21.16594096]
[1747523612787,10.23955239,165.44,165.36,21.16594096]
[1747523613762,26.0,165.47,165.36,21.16594096]
[1747523613763,26.0,165.47,165.37,19.85864355]
[1747523614279,61.28142363,165.48,165.37,45.85864355]
[1747523614481,61.28142363,165.48,165.38,21.1633813]
[1747523615059,51.04187124,165.48,165.39,18.64964886]
[1747523615502,51.04187124,165.48,165.39,19.85843926]
[1747523616584,30.56187124,165.48,165.4,21.16082224]
[1747523617476,30.56187124,165.48,165.41,18.64964886]
[1747523617719,30.56187124,165.48,165.41,62.64964886]
[1747523617984,30.56187124,165.48,165.41,83.04964886]
[1747523618494,30.56187124,165.48,165.42,21.15826381]
[1747523625666,30.56187124,165.48,165.43,18.64964886]
[1747523626075,30.56187124,165.48,165.43,19.85816515]
[1747523626263,1.5064,165.52,165.43,19.85816515]
[1747523626671,26.0,165.53,165.43,19.85816515]
[1747523627781,32.04122943,165.53,165.44,21.15570598]
[1747523628788,42.28078182,165.53,165.44,21.15570598]
[1747523634693,16.28129347,165.52,165.44,21.15570598]
[1747523635890,16.28129347,165.52,165.44,65.15570598]
[1747523637490,6.04174108,165.52,165.44,65.15570598]
[1747523640313,16.28129347,165.52,165.44,50.04448742]
[1747523640473,10.23955239,165.51,165.44,50.04448742]
[1747523641495,16.28169677,165.51,165.44,50.04448742]
[1747523641692,6.04214438,165.51,165.44,50.04448742]
[1747523644879,6.04214438,165.51,165.44,6.04448742]
[1747523645699,16.28169677,165.51,165.43,26.12479478]
[1747523645905,10.23955239,165.48,165.4,37.95670318]
[1747523646437,10.23955239,165.45,165.4,4.34250318]
[1747523646591,10.23955239,165.46,165.4,4.34250318]
[1747523647808,6.04412209,165.45,165.39,6.04616791]
[1747523649506,6.04375679,165.46,165.39,6.04616791]
[1747523649881,26.0,165.49,165.4,18.64964886]
[1747523650106,10.23955239,165.49,165.4,18.64964886]
[1747523650982,7.64721602,165.51,165.42,18.64964886]
[1747523651189,10.3575581,165.54,165.43,1.20864855]
[1747523651190,16.28121766,165.52,165.43,1.20864855]
[1747523651404,16.28121766,165.52,165.43,21.26864855]
[1747523652288,16.28121766,165.52,165.44,6.04448742]
[1747523653713,42.28086698,165.53,165.44,6.04448742]
[1747523654210,10.23955239,165.52,165.44,6.04448742]
[1747523654377,32.04131459,165.53,165.44,6.04448742]
[1747523654581,10.23955239,165.52,165.44,6.04448742]
[1747523655531,16.28050836,165.54,165.45,1.20850654]
[1747523655685,6.04095597,165.54,165.45,1.20850654]
[1747523656515,17.82604693,165.55,165.45,1.20850654]
[1747523657009,46.26,165.56,165.46,18.64964886]
[1747523657209,46.26,165.56,165.45,27.20850654]
[1747523657210,52.30016306,165.56,165.48,18.64964886]
[1747523657416,52.30016306,165.56,165.49,20.04]
[1747523657726,52.30016306,165.56,165.5,6.04229607]
[1747523659627,46.26,165.56,165.5,6.04229607]
[1747523660072,10.23955239,165.58,165.5,6.04229607]
[1747523660212,1.5293,165.59,165.5,10.80800306]
[1747523660411,1.5293,165.59,165.51,19.85770378]
[1747523660616,42.27826723,165.6,165.51,19.85770378]
[1747523660617,32.03871484,165.6,165.51,19.85770378]
[1747523661302,32.03871484,165.6,165.52,6.04156597]
[1747523663738,6.03791812,165.62,165.52,21.1454809]
[1747523663916,7.7737,165.63,165.52,21.1454809]
[1747523663917,11.76885239,165.63,165.53,27.52919094]
[1747523664822,17.80649911,165.63,165.53,27.52919094]
[1747523665022,1.5293,165.63,165.55,18.64964886]
[1747523665327,26.0,165.64,165.55,39.83735541]
[1747523666556,14.72923289,165.67,165.55,39.83735541]
[1747523666711,10.23955239,165.68,165.55,83.83735541]
[1747523666912,14.49061049,165.69,165.55,83.83735541]
[1747523667135,32.03573662,165.68,165.59,18.64964886]
[1747523668019,32.03573662,165.68,165.6,6.03864734]
[1747523668767,16.27493667,165.69,165.6,6.03864734]
[1747523669844,16.27493667,165.69,165.6,21.13526569]
[1747523669845,10.23955239,165.69,165.6,21.13526569]
[1747523670141,42.27462831,165.7,165.62,6.03791812]
[1747523670634,10.23955239,165.69,165.62,6.03791812]
[1747523671732,16.27517216,165.69,165.62,6.03791812]
[1747523672039,16.27517216,165.69,165.61,25.9781544]
[1747523672813,36.23955239,165.7,165.61,41.07386118]
[1747523673648,42.27465792,165.7,165.61,41.07386118]
[1747523674047,42.27465792,165.7,165.61,25.9781544]
[1747523674048,10.23955239,165.69,165.61,25.9781544]
[1747523674614,32.03510553,165.7,165.61,25.9781544]
[1747523674821,10.23955239,165.69,165.61,25.9781544]
[1747523675664,32.03510553,165.7,165.61,25.9781544]
[1747523675827,27.55486424,165.71,165.62,18.64964886]
[1747523676020,37.79441663,165.71,165.62,18.64964886]
[1747523676915,37.79441663,165.71,165.63,6.03755358]
[1747523677485,11.77965239,165.71,165.63,21.13143753]
[1747523677653,17.81430425,165.71,165.63,21.13143753]
[1747523678851,17.81430425,165.71,165.63,6.03755358]
[1747523679152,10.23955239,165.69,165.62,7.63749736]
[1747523679353,7.57475186,165.71,165.63,18.64964886]
[1747523679516,17.81430425,165.71,165.63,18.64964886]
[1747523681743,17.81430425,165.71,165.64,6.03718908]
[1747523682431,10.23955239,165.65,165.54,8.2141]
[1747523682634,10.23955239,165.64,165.54,8.2141]
[1747523682852,10.23955239,165.63,165.55,6.04047115]
[1747523683018,10.23955239,165.64,165.55,6.04047115]
[1747523683925,6.03755358,165.63,165.55,6.04047115]
[1747523685151,6.03755358,165.63,165.55,25.84047115]
[1747523685326,16.27710597,165.63,165.55,25.84047115]
[1747523687452,21.13016179,165.64,165.55,25.84047115]
[1747523687755,10.23955239,165.63,165.55,25.84047115]
[1747523688157,10.23955239,165.63,165.55,19.8]
[1747523688655,10.23955239,165.63,165.55,25.84044973]
[1747523689020,6.03718908,165.64,165.56,19.85740976]
[1747523689649,6.03718908,165.64,165.57,6.03974149]
[1747523690052,16.27674147,165.64,165.56,44.0]
[1747523690361,10.23955239,165.63,165.56,44.0]
[1747523690739,10.23955239,165.62,165.56,44.0]
[1747523690957,10.23955239,165.61,165.54,27.9741]
[1747523691551,6.03864734,165.6,165.54,8.2141]
[1747523692828,6.03864734,165.6,165.54,1.583]
[1747523693051,16.27819973,165.6,165.53,19.76]
[1747523693366,6.03864734,165.6,165.53,19.76]
[1747523693862,10.23955239,165.59,165.51,44.0]
[1747523694154,21.13526569,165.6,165.51,44.0]
[1747523694155,31.37481808,165.6,165.51,50.04186117]
[1747523695868,31.37481808,165.6,165.51,6.04186117]
[1747523696033,21.13526569,165.6,165.51,6.04186117]
[1747523696529,31.37481808,165.6,165.51,6.04186117]
[1747523698241,15.09661835,165.6,165.51,6.04186117]
[1747523699768,16.2778351,165.61,165.51,24.69151003]
[1747523699938,6.03828271,165.61,165.51,24.69151003]
[1747523700272,6.03828271,165.61,165.52,18.64964886]
[1747523700576,6.03828271,165.61,165.52,19.85758965]
[1747523701273,6.03828271,165.61,165.52,18.64964886]
[1747523701577,10.23955239,165.6,165.51,6.041931]
[1747523701747,21.13398949,165.61,165.51,6.041931]
[1747523701951,10.23955239,165.59,165.5,53.92207707]
[1747523702982,10.23955239,165.58,165.5,19.98]
[1747523703183,10.23955239,165.56,165.48,19.66]
[1747523703354,6.04047115,165.55,165.47,25.70333195]
[1747523703682,6.04047115,165.55,165.47,26.91163462]
[1747523703869,25.33817994,165.58,165.47,26.91163462]
[1747523704481,25.33817994,165.58,165.47,25.70333195]
[1747523704653,15.09862755,165.58,165.47,25.70333195]
[1747523704979,6.03974149,165.57,165.48,18.64964886]
[1747523705150,6.03947166,165.58,165.48,19.85789124]
[1747523705355,6.03864734,165.6,165.5,39.79768511]
[1747523705707,6.03791812,165.62,165.52,18.64964886]
[1747523705874,6.03791812,165.62,165.53,19.64]
[1747523705875,32.03791812,165.62,165.53,19.64]
[1747523706561,6.03791812,165.62,165.54,6.04083605]
[1747523706756,32.03791812,165.62,165.54,6.04083605]
[1747523707184,32.03791812,165.62,165.53,19.64]
[1747523707185,57.37226582,165.62,165.53,25.68106716]
[1747523707351,10.23955239,165.61,165.53,19.64]
[1747523707753,10.23955239,165.61,165.53,25.68118309]
[1747523708546,47.13271343,165.62,165.53,25.68118309]
[1747523708547,32.03791812,165.62,165.53,25.68118309]
[1747523708787,26.0,165.62,165.54,19.85751107]
[1747523709068,32.03799165,165.62,165.54,19.85751107]
[1747523709994,32.03799165,165.62,165.55,6.04047115]
[1747523710465,32.03799165,165.62,165.54,6.04069762]
[1747523715448,10.23955239,165.6,165.51,52.0353]
[1747523715771,36.23955239,165.59,165.51,52.0353]
[1747523715942,10.23955239,165.58,165.51,52.0353]
[1747523716147,10.23955239,165.58,165.51,8.0353]
[1747523716578,10.23955239,165.57,165.5,19.64]
[1747523717648,6.0401063,165.56,165.5,19.64]
[1747523719177,6.0401063,165.56,165.5,25.68228729]
[1747523719480,6.0398317,165.57,165.5,25.68228729]
[1747523719777,36.23955239,165.59,165.5,25.68228729]
[1747523720083,16.2790452,165.58,165.5,25.68228729]
[1747523720379,10.23955239,165.57,165.5,25.68228729]
[1747523721083,6.0401063,165.56,165.5,19.64]
[1747523723176,6.03974149,165.57,165.5,25.68228403]
[1747523725369,16.27929388,165.57,165.5,19.64]
[1747523726781,31.37864762,165.57,165.5,19.64]
[1747523729991,31.37864762,165.57,165.47,7.9688]
[1747523730287,10.23955239,165.54,165.47,7.9688]
[1747523730614,10.23955239,165.53,165.47,1.6652]
[1747523730962,10.23955239,165.54,165.47,1.6652]
[1747523732185,6.04120099,165.53,165.47,1.6652]
[1747523733390,26.0,165.56,165.47,7.70855903]
[1747523733579,6.03984039,165.57,165.47,33.70855903]
[1747523733779,6.03984039,165.57,165.48,6.0787]
[1747523734500,16.27939278,165.57,165.48,6.0787]
[1747523734788,10.23955239,165.56,165.48,6.0787]
[1747523734993,36.23955239,165.56,165.48,6.0787]
[1747523735393,16.28002354,165.55,165.48,6.0787]
[1747523735770,16.28002354,165.55,165.48,12.12159807]
[1747523737569,16.28002354,165.55,165.48,6.0787]
[1747523737895,16.28002354,165.55,165.48,12.12168887]
[1747523738279,6.04047115,165.55,165.48,12.12168887]
[1747523739194,16.28002354,165.55,165.48,12.12168887]
[1747523739396,16.28002354,165.55,165.47,7.70846322]
[1747523739697,16.28002354,165.55,165.45,19.64]
[1747523739698,10.23955239,165.54,165.46,6.04367435]
[1747523740674,6.04120099,165.53,165.46,6.04367435]
[1747523741696,42.28075338,165.53,165.44,6.04448742]
[1747523741898,10.23955239,165.51,165.44,25.68448742]
[1747523742305,10.23955239,165.5,165.43,1.6007]
[1747523742475,10.23955239,165.5,165.42,4.34250318]
[1747523742804,6.04266118,165.49,165.42,10.38768148]
[1747523743098,6.04266118,165.49,165.42,6.0451783]
[1747523747818,31.38886653,165.49,165.39,7.7571]
[1747523748142,10.23955239,165.48,165.39,27.3971]
[1747523748300,10.23955239,165.47,165.39,13.80333428]
[1747523749307,10.23955239,165.48,165.39,13.80333428]
[1747523750003,6.04339155,165.47,165.39,13.80333428]
[1747523753287,10.23955239,165.47,165.39,13.80333428]
[1747523754410,6.04375679,165.46,165.39,13.80333428]
[1747523755289,6.0434737,165.47,165.39,13.80333428]
[1747523756411,16.28302609,165.47,165.39,13.80333428]
[1747523759112,25.34728377,165.48,165.39,13.80333428]
[1747523760014,10.23955239,165.47,165.39,13.80333428]
[1747523760414,31.39270117,165.46,165.37,19.64]
[1747523760588,10.23955239,165.45,165.36,65.28]
[1747523761488,6.04448742,165.44,165.37,6.04692072]
[1747523762192,10.23955239,165.46,165.37,6.04692072]
[1747523763019,16.28342749,165.46,165.37,6.04692072]
[1747523763218,16.28342749,165.46,165.37,25.68692072]
[1747523763510,26.0,165.47,165.37,26.89604445]
[1747523763511,42.28321679,165.47,165.37,26.89604445]
[1747523763715,32.0436644,165.47,165.37,26.89604445]
[1747523764022,26.0,165.47,165.38,18.64964886]
[1747523764903,26.0,165.47,165.39,1.20881775]
[1747523766115,26.0,165.47,165.4,7.70104921]
[1747523766502,26.0,165.47,165.4,22.81592224]
[1747523766816,42.28305369,165.47,165.4,7.70104921]
[1747523767019,10.23955239,165.46,165.37,63.64]
[1747523767321,10.23955239,165.45,165.37,63.64]
[1747523768129,6.04448742,165.44,165.38,6.04656278]
[1747523769821,6.04412209,165.45,165.38,6.04656278]
[1747523770025,16.28367448,165.45,165.37,25.68696808]
[1747523770522,31.3939797,165.45,165.36,27.34240856]
[1747523770729,10.23955239,165.43,165.36,1.6551]
[1747523771112,10.23955239,165.43,165.36,7.7024019]
[1747523771309,10.23955239,165.43,165.36,1.6551]
[1747523772324,6.04521823,165.42,165.36,1.6551]
[1747523773433,6.04521823,165.42,165.36,7.70244937]
[1747523773617,6.04495163,165.43,165.36,7.70244937]
[1747523774233,6.04339155,165.47,165.38,6.04668037]
[1747523775326,16.28294394,165.47,165.38,6.04668037]
[1747523775633,10.23955239,165.46,165.38,6.04668037]
[1747523776339,6.04412209,165.45,165.37,6.04704601]
[1747523777661,6.04375679,165.46,165.37,6.04704601]
[1747523779042,16.28330918,165.46,165.37,6.04704601]
[1747523780158,10.23955239,165.45,165.37,6.04704601]
[1747523781137,6.04448742,165.44,165.37,6.04704601]
[1747523782524,10.23955239,165.43,165.36,1.6551]
[1747523783845,10.23955239,165.43,165.36,7.70240204]
[1747523784418,6.04521823,165.42,165.36,7.70240204]
[1747523785550,6.0448528,165.43,165.36,1.6551]
[1747523785751,16.28440519,165.43,165.36,1.6551]
[1747523786417,16.28440519,165.43,165.36,7.7025072]
[1747523786919,16.28440519,165.43,165.36,1.6551]
[1747523787118,10.23955239,165.42,165.34,6.04801236]
[1747523787535,31.3965372,165.43,165.34,6.04801236]
[1747523790452,6.0448528,165.43,165.34,6.04801236]
[1747523791835,6.0448528,165.43,165.34,21.16837041]
[1747523792550,1.6102,165.42,165.34,15.12035805]
[1747523792738,10.23955239,165.37,165.32,4.34250318]
[1747523794935,6.0474117,165.36,165.32,4.34250318]
[1747523795481,6.0474117,165.36,165.29,6.0496785]
[1747523797055,6.0474117,165.36,165.28,25.69033881]
[1747523797647,6.04716189,165.37,165.28,40.81618585]
[1747523798044,32.04672969,165.38,165.28,40.81618585]
[1747523798540,42.28628208,165.38,165.28,40.81618585]
[1747523798742,32.04672969,165.38,165.28,40.81618585]
[1747523799754,42.28628208,165.38,165.28,40.81618585]
[1747523800736,10.23955239,165.37,165.28,25.69033881]
[1747523801568,10.23955239,165.36,165.28,25.69033881]
[1747523801756,6.04777744,165.35,165.28,25.69033881]
[1747523802956,10.23955239,165.35,165.28,25.69033881]
[1747523803749,10.23955239,165.34,165.27,13.96731361]
[1747523804143,10.23955239,165.33,165.27,13.96731361]
[1747523805864,6.04840786,165.34,165.27,13.96731361]
[1747523806041,10.23955239,165.34,165.27,13.96731361]
[1747523807067,16.28790877,165.34,165.27,7.9167]
[1747523807254,10.23955239,165.32,165.25,6.05143721]
[1747523807572,16.28790877,165.34,165.25,21.18003025]
[1747523807952,10.23955239,165.33,165.25,21.18003025]
[1747523808953,16.28790877,165.34,165.25,21.18003025]
[1747523809157,6.04835638,165.34,165.25,21.18003025]
[1747523811474,139.7869,165.39,165.26,18.64964886]
[1747523811666,26.0,165.36,165.28,6.3702]
[1747523812777,42.28715431,165.36,165.29,6.04997277]
[1747523814186,36.23955239,165.36,165.29,6.04997277]
[1747523814484,26.0,165.36,165.29,21.1749047]
[1747523815473,29.87955239,165.38,165.29,21.1749047]
[1747523815789,51.68685661,165.38,165.29,21.1749047]
[1747523816256,61.926409,165.38,165.29,21.1749047]
[1747523816577,61.926409,165.38,165.3,19.64]
[1747523817278,61.926409,165.38,165.31,6.04924082]
[1747523818177,10.23955239,165.37,165.31,6.04924082]
[1747523818780,61.926409,165.38,165.31,6.04924082]
[1747523819158,51.68685661,165.38,165.31,6.04924082]
[1747523819357,61.926409,165.38,165.31,6.04924082]
[1747523820458,10.23955239,165.37,165.29,19.64]
[1747523821353,16.28695551,165.37,165.29,25.68983185]
[1747523822393,51.6867887,165.38,165.29,25.68983185]
[1747523822561,45.64,165.38,165.3,19.85933213]
[1747523822879,6.04521823,165.42,165.3,19.85933213]
[1747523823073,138.2,165.44,165.31,7.7308]
[1747523823279,26.0,165.41,165.33,18.64964886]
[1747523823781,26.0,165.41,165.34,6.04814322]
[1747523824087,34.13061049,165.46,165.35,19.64]
[1747523824384,6.04440852,165.45,165.36,1.6206]
[1747523825079,6.04440852,165.45,165.36,2.82961388]
[1747523825781,6.04440852,165.45,165.37,6.04704601]
[1747523827182,51.68377195,165.46,165.37,6.04704601]
[1747523827485,45.64,165.46,165.37,12.70224601]
[1747523827680,45.64,165.46,165.37,27.81986105]
[1747523828589,32.04379607,165.46,165.37,27.81986105]
[1747523830188,26.0,165.46,165.38,18.64964886]
[1747523831600,32.04380886,165.46,165.38,18.64964886]
[1747523831767,42.28336125,165.46,165.37,12.70224601]
[1747523831966,10.23955239,165.45,165.37,12.70224601]
[1747523832177,6.04448742,165.44,165.37,12.70224601]
[1747523832991,6.04419839,165.45,165.37,12.70224601]
[1747523833294,42.283445,165.46,165.37,27.81986105]
[1747523834594,32.04389261,165.46,165.37,27.81986105]
[1747523836395,32.04389261,165.46,165.37,29.02881978]
[1747523838216,26.0,165.47,165.38,18.64964886]
[1747523838981,51.60246898,165.5,165.4,18.64964886]
[1747523839295,61.84202137,165.5,165.41,19.62]
[1747523840207,67.88435861,165.5,165.42,6.04521823]
[1747523840389,10.23955239,165.49,165.42,6.04521823]
[1747523841200,36.23955239,165.48,165.41,19.62]
[1747523841897,36.23955239,165.48,165.41,25.66542618]
[1747523842397,32.04320552,165.48,165.41,25.66542618]
[1747523842705,6.04320552,165.48,165.41,25.66542618]
[1747523843877,16.28221357,165.49,165.41,25.66542618]
[1747523844073,16.28221357,165.49,165.41,19.62]
[1747523844277,10.23955239,165.48,165.41,19.62]
[1747523845201,6.04339155,165.47,165.41,19.62]
[1747523845376,6.04339155,165.47,165.41,25.6655657]
[1747523845580,77.60246898,165.5,165.41,25.6655657]
[1747523845581,87.84202137,165.5,165.41,25.6655657]
[1747523845779,77.60246898,165.5,165.41,25.6655657]
[1747523846202,83.64489258,165.5,165.42,1.5727]
[1747523847408,57.6447664,165.5,165.43,6.0448528]
[1747523847710,6.04229742,165.5,165.43,6.0448528]
[1747523848708,6.04083605,165.54,165.44,18.64964886]
[1747523848914,6.03974149,165.57,165.46,18.64964886]
[1747523849092,6.03974149,165.57,165.48,44.64964886]
[1747523849279,6.03937673,165.58,165.5,6.04229607]
[1747523849617,10.23955239,165.57,165.47,21.1927]
[1747523849793,10.23955239,165.56,165.47,21.1927]
[1747523849979,10.23955239,165.57,165.47,21.1927]
[1747523850493,6.0401063,165.56,165.47,27.2360209]
[1747523851104,31.37992445,165.56,165.47,27.2360209]
[1747523854808,21.14037206,165.56,165.47,27.2360209]
[1747523855211,31.37992445,165.56,165.47,21.1927]
[1747523856706,21.14037206,165.56,165.47,21.1927]
[1747523856910,21.14037206,165.56,165.47,27.23608897]
[1747523859095,31.37992445,165.56,165.47,27.23608897]
[1747523860905,31.37992445,165.56,165.47,1.5727]
[1747523861121,6.04083605,165.54,165.47,1.5727]
[1747523865605,6.04083605,165.54,165.47,7.6160736]
[1747523866638,31.38120143,165.55,165.47,1.5727]
[1747523867824,31.38120143,165.55,165.46,19.6]
[1747523870834,36.23955239,165.52,165.44,19.6]
[1747523871131,6.041931,165.51,165.44,45.24440421]
[1747523874537,6.041931,165.51,165.44,25.64440421]
[1747523874736,6.041931,165.51,165.44,45.24440421]
[1747523878736,21.13858019,165.58,165.45,39.80382061]
[1747523878941,21.13858019,165.58,165.45,41.01236214]
[1747523878942,10.23955239,165.57,165.45,41.01236214]
[1747523879120,31.37813258,165.58,165.45,41.01236214]
[1747523879337,26.0,165.55,165.45,41.01236214]
[1747523880538,6.04083605,165.54,165.45,41.01236214]
[1747523880919,16.28038844,165.54,165.45,6.04386653]
[1747523881116,16.28038844,165.54,165.45,25.62386653]
[1747523882040,10.23955239,165.53,165.45,25.62386653]
[1747523883258,6.04156597,165.52,165.45,25.62386653]
[1747523883851,6.04156597,165.52,165.43,26.59014886]
[1747523883852,26.0,165.48,165.41,4.34250318]
[1747523884053,26.0,165.48,165.41,10.38803577]
[1747523885025,10.23955239,165.5,165.41,10.38803577]
[1747523885233,36.23955239,165.5,165.41,10.38803577]
[1747523885619,6.04266118,165.49,165.41,10.38803577]
[1747523885818,26.0,165.5,165.41,25.50199502]
[1747523886011,270.75770926,165.54,165.41,25.50199502]